Cogmind - Beta 16 @@@ ROGUE MODE // 2025.10.26 @ 18:59:00 Player: Naughtyusername Result: Destroyed by G-34 Mercenary with Small Laser Performance ------------- Evolutions (1) 500 Regions Visited (2) 400 Robots Destroyed (17) 85 Value Destroyed (325) 325 Prototype IDs (1) 20 Alien Tech Used (0) 0 Bonus (200) 200 TOTAL SCORE: 1530 Bonus ------- Pacifist 200 Cogmind --------- Core Integrity 0/400 Matter 175/300 Energy 98/100 System Corruption 2% Temperature Cool (6) Movement Core (50) Location -9/Materials Parts ------- > --- POWER (1) -------- (None) > --- PROPULSION (3) --- (None) > --- UTILITY (3) ------ Targeting Computer Melee Analysis Suite Melee Analysis Suite > --- WEAPON (2) ------- Mace > --- INVENTORY (5) ---- Hover Unit Hover Unit Improved Assault Rifle Improved Assault Rifle Grenade Launcher Peak State ------------ > --- POWER ------------ (None) > --- PROPULSION ------- (None) > --- UTILITY ---------- Targeting Computer Melee Analysis Suite Melee Analysis Suite > --- WEAPON ----------- Mace > --- INVENTORY -------- Hover Unit Hover Unit Improved Assault Rifle Improved Assault Rifle Grenade Launcher [Rating: 9] Favorites ----------- Power None Propulsion None Utility Targeting Computer Processor Targeting Computer Weapon Improved Assault Rifle Ballistic Gun Improved Assault Rifle Launcher Grenade Launcher Impact Weapon Mace Build | -11 -10 -9 ------- Run | Yrd Mat Mat Slots Evolved 2 | . . 2 Power . | . . . Propulsion 1 | . . 1 Utility 1 | . . 1 Weapon . | . . . Parts Attached 9 | . . 9 Power . | . . . Engine . | . . . Core . | . . . Reactor . | . . . Propulsion . | . . . Treads . | . . . Leg . | . . . Wheel . | . . . Hover . | . . . Flight . | . . . Utility 4 | . . 4 Device . | . . . Storage . | . . . Processor 4 | . . 4 Hackware . | . . . Protection . | . . . Artifact . | . . . Weapon 5 | . . 5 Energy Gun . | . . . Energy Cannon . | . . . Ballistic Gun 2 | . . 2 Ballistic Cannon . | . . . Launcher 2 | . . 2 Special Weapon . | . . . Impact Weapon 1 | . . 1 Slashing Weapon . | . . . Piercing Weapon . | . . . Special Melee Weapon . | . . . Unidentified Prototypes 1 | . . 1 Parts Lost 2 | . . 2 Power . | . . . Propulsion . | . . . Utility 1 | . . 1 Weapon 1 | . . 1 Highest Loss Streak 1 | . . 1 To Critical Strikes . | . . . Average Backups 2 | . 1 3 Power . | . . . Propulsion 1 | . . 1 Utility . | . . . Weapon 1 | . . 1 Tool/Special . | . . . Unused Backups 2 | . . 2 Power . | . . . Propulsion 2 | . . 2 Utility . | . . . Weapon . | . . . Tool/Special . | . . . Average Slot Usage (%) 16 | . . 21 Processor 11 | . . 14 Ballistic Gun 2 | . . 3 Impact Weapon 1 | . . 2 Peak Build Rating 9 | . . 9 Average Rating 2 | . . 3 On Entrance . | . . . Avg Prop Armor Cover (%) . | . . . Naked Turns 84 | . 81 3 Heaviest Build 3 | . . 3 Greatest Support 3 | 3 3 3 Greatest Overweight (x) . | . . . Average Overweight (x) . | . . . Largest Inventory Capacity 5 | 5 5 5 Average Capacity 5 | 5 5 5 Most Carried 5 | . 2 5 Average Carried 2 | . 1 3 Final Capacity 5 | 5 5 5 Final Carried 5 | . 2 5 Class Distribution -------------------- 100% | Mutant Dominant Class ---------------- Mutant | -10/Materials Mutant | -9/Materials Resources | -11 -10 -9 ----------- Run | Yrd Mat Mat Matter Collected 342 | 200 . 142 Remotely . | . . . Salvage Created 322 | . . 322 Parts 24 | . . 24 Haulers Intercepted 1 | . . 1 Recyclers Shooed . | . . . Parts Field Recycled . | . . . Retrieved Matter . | . . . Parts Self-Destructed . | . . . Prevented . | . . . Parts Restored . | . . . Kills | -11 -10 -9 ------- Run | Yrd Mat Mat Combat Hostiles Destroyed 13 | . . 13 Guns 3 | . . 3 AOE 10 | . . 10 Classes Destroyed 6 | . . 6 Worker 1 | . . 1 Hauler 1 | . . 1 Recycler 1 | . . 1 Operator 1 | . . 1 Swarmer 7 | . . 7 Grunt 6 | . . 6 Best Kill Streak 12 | . . 12 Combat Bots Only 7 | . . 7 Max Kills in Single Turn 5 | . . 5 Gunslinging . | . . . Exploded 4 | . . 4 Melee . | . . . Uniques/NPCs Destroyed . | . . . Combat | -11 -10 -9 -------- Run | Yrd Mat Mat Hostile Shots Fired 103 | . 30 73 Missed 31 | . 14 17 Hits 72 | . 16 56 Projectile 72 | . 16 56 Critical Strikes 2 | . . 2 Damage Taken 881 | . 152 729 Core 556 | . 152 404 Absorbed by Shields . | . . . Core Remaining (%) 69 | 100 39 . Volleys Fired 24 | . . 24 Largest 2 | . . 2 Hottest 46 | . . 46 Shots Fired 39 | . . 39 Gun 30 | . . 30 Cannon . | . . . Launcher 9 | . . 9 Special . | . . . Kinetic 30 | . . 30 Thermal . | . . . Explosive 9 | . . 9 Electromagnetic . | . . . Robot Hit Streak 7 | . . 7 Robot Miss Streak 2 | . . 2 Penetration Max . | . . . Secondary Targets 2 | . . 2 Max Gunslinging Chain 1 | . . 1 Shots Hit Robots 24 | . . 24 Core Hits 26 | . . 26 Critical Kills . | . . . Critical Parts Destroyed . | . . . Critical Strikes . | . . . Melee Attacks . | . . . Impact . | . . . Slashing . | . . . Piercing . | . . . Sneak Attacks . | . . . Combat Hostiles . | . . . Follow-up Attacks . | . . . Damage Inflicted 1055 | . 19 1036 Guns 311 | . . 311 Cannons . | . . . Explosions 684 | . . 684 Melee . | . . . Ramming 60 | . 19 41 Kinetic 311 | . . 311 Thermal . | . . . Explosive 684 | . . 684 Electromagnetic . | . . . Impact . | . . . Slashing . | . . . Piercing . | . . . Highest Corruption 2 | . 2 2 Average Corruption 2 | . 2 2 Corruption Purged . | . . . Corruption Blocked . | . . . Overload Shots . | . . . Overflow Damage . | . . . Projectiles . | . . . Explosions . | . . . Melee . | . . . Knockbacks . | . . . Impact . | . . . Kinetic . | . . . Secondary . | . . . Self-Inflicted Damage 71 | . 9 62 Shots 2 | . . 2 Rammed 12 | . 3 9 Targets Rammed 12 | . 3 9 Kicked . | . . . Crushed . | . . . Highest Temperature 14 | . . 14 Average Temperature 5 | . . 5 Received Heat Transfer 381 | . 27 354 Siege Activations . | . . . Martial Activations . | . . . Shielding Activations . | . . . Robots Disrupted . | . . . Combat Hostiles . | . . . Robots Corrupted . | . . . Combat Hostiles . | . . . Parts Fried . | . . . Impact Corruptions . | . . . Robots Melted . | . . . Combat Hostiles . | . . . Parts Melted . | . . . Heat Transferred . | . . . Parts Sabotaged . | . . . Parts Stolen . | . . . Parts Stripped . | . . . Power Chain Reactions . | . . . Alert | -11 -10 -9 ------- Run | Yrd Mat Mat Maximum Alert Level 1 | . . 1 Low Security (%) 63 | 100 100 52 Level 1 36 | . . 47 Level 2 . | . . . Level 3 . | . . . Level 4 . | . . . Level 5 . | . . . High Security . | . . . Max Security . | . . . Peak Influence 370 | . . 370 Initial . | . . . Average 131 | . . 169 Influence Increases 470 | . . 470 Destroy 0b10 Robot/C 260 | . . 260 Destroy 0b10 Robot/NC 20 | . . 20 Destroy Leader 42 | . . 42 Destroy Structure 43 | . . 43 Lose Combat Pursuer 105 | . . 105 Influence Decreases 130 | . . 130 Time Decay 110 | . . 110 Lost Part 20 | . . 20 Squads Dispatched 4 | . 1 3 Investigation 1 | . . 1 Extermination . | . . . Reinforcement 3 | . 1 2 Assault . | . . . Garrison . | . . . Intercept . | . . . Searches Triggered . | . . . Construction Impeded . | . . . Haulers Reinforced . | . . . Active Scanning Responses . | . . . Cargo Convoy Interrupts . | . . . Stealth | -11 -10 -9 --------- Run | Yrd Mat Mat Distress Signals 2 | . 1 1 Communications Jammed . | . . . Distress Signals . | . . . Times Spotted 37 | . 10 27 Peak Tracking Total 13 | . 9 13 Tactical Retreats 4 | . . 4 Traps | -11 -10 -9 ------- Run | Yrd Mat Mat Traps Triggered . | . . . Indirectly . | . . . Trap Hack Attempts . | . . . Triggered . | . . . Disarmed . | . . . Reprogrammed . | . . . Reused . | . . . Traps Extracted . | . . . Installed . | . . . Triggered . | . . . Machines | -11 -10 -9 ---------- Run | Yrd Mat Mat Machines Disabled . | . . . Max in Single Turn . | . . . Machines Repaired . | . . . Machines Dismantled . | . . . Machines Sabotaged . | . . . Overloaded Fab Kills . | . . . Hacking | -11 -10 -9 --------- Run | Yrd Mat Mat Machines Accessed 6 | . 2 4 Terminals 3 | . 2 1 Fabricators . | . . . Repair Stations 2 | . . 2 Recycling Units 1 | . . 1 Scanalyzers . | . . . Garrison Access . | . . . Total Hacks 14 | . 5 9 Successful 1 | . . 1 Failed 13 | . 5 8 Catastrophic 3 | . . 3 Database Lockouts . | . . . Manual 6 | . 5 1 Terminals 6 | . 5 1 Fabricators . | . . . Repair Stations 7 | . . 7 Recycling Units 1 | . . 1 Scanalyzers . | . . . Garrison Access . | . . . Terminal Hacks . | . . . Fabricator Hacks . | . . . Repair Station Hacks . | . . . Recycling Unit Hacks 1 | . . 1 Retrieve Components 1 | . . 1 Scanalyzer . | . . . Garrison Access Hacks . | . . . Unauthorized Hacks . | . . . Terminals . | . . . Fabricators . | . . . Repair Stations . | . . . Recycling Units . | . . . Scanalyzers . | . . . Garrison Access . | . . . Data Cores Recovered . | . . . Used . | . . . Hacking Detections 5 | . 2 3 Full Trace Events 2 | . . 2 Feedback Events . | . . . Feedback Blocked . | . . . Robot Schematics Acquired . | . . . Robots Built . | . . . Authchips . | . . . Time . | . . . Total Robot Build Rating . | . . . Part Schematics Acquired . | . . . Parts Built . | . . . Authchips . | . . . Time . | . . . Total Part Build Rating . | . . . Part Studies Acquired . | . . . Parts Repaired . | . . . Time . | . . . Parts Recycled . | . . . Recycled Matter . | . . . Retrieved Matter . | . . . Retrieved Components 1 | . . 1 Parts Scanalyzed . | . . . Part Schematics Acquired . | . . . Parts Damaged . | . . . Bothacking | -11 -10 -9 ------------ Run | Yrd Mat Mat Used RIF Installer . | . . . Robots Hacked . | . . . Non-combat . | . . . Combat . | . . . Robot Hacks Applied . | . . . Relay Couplers Released . | . . . Fabnet Peak Effective % . | . . . Robots Rewired . | . . . Allies Hacked . | . . . Hacks Repelled . | . . . Allies | -11 -10 -9 -------- Run | Yrd Mat Mat Total Allies . | . . . Largest Group . | . . . Highest-Rated Group . | . . . Highest-Rated Ally . | . . . Total Orders . | . . . Ally Attacks . | . . . Total Damage . | . . . Kills . | . . . Allies Corrupted . | . . . Allies Melted . | . . . Intel | -11 -10 -9 ------- Run | Yrd Mat Mat Active Infowar (turns) 79 | . . 79 Optics 79 | . . 79 Robot Analysis Total . | . . . Derelict Logs Recovered . | . . . Drone Launches . | . . . Drone Recoveries . | . . . Exploration | -11 -10 -9 ------------- Run | Yrd Mat Mat Turns Passed 410 | 11 81 318 Spaces Moved 626 | 21 151 454 Core 626 | 21 151 454 Treads . | . . . Legs . | . . . Wheels . | . . . Hover . | . . . Flight . | . . . Fastest Speed 50 | 50 50 50 Average Speed 50 | 50 50 50 Slowest Speed 50 | 50 50 50 Overloaded Moves . | . . . Propulsion Burnouts . | . . . Robots Hopped . | . . . Potential Cave-ins . | . . . Cave-ins Triggered . | . . . Exploration Rate (%) 35 | 3 39 63 Regions Visited 2 Branch Regions . Pre-discovered Areas . | . . . Known Exits Taken . | . . . Unknown Exits Taken 2 | 1 1 . Scrap Searched . | . . . Spaces Dug . | . . . Terrain Destroyed 46 | . . 46 Melee . | . . . Projectile . | . . . AOE 46 | . . 46 Terrain Rammed . | . . . Walls Destroyed . | . . . Machines Disabled . | . . . Actions | -11 -10 -9 --------- Run | Yrd Mat Mat Total 680 | 20 155 505 Wait . | . . . Move 624 | 20 150 454 Hop . | . . . Pick Up 4 | . 2 2 Fast Attach 7 | . . 7 Attach 4 | . . 4 Detach 5 | . . 5 Swap . | . . . Drop . | . . . Fire 24 | . . 24 Melee . | . . . Ram 12 | . 3 9 Kick . | . . . Crush . | . . . Escape Stasis . | . . . Rewire . | . . . Trap . | . . . Miscellaneous . | . . . Route ------- -11/Scrapyard -10/Materials -9/Materials (discovered 1 exit: [*Mat]) History --------- Turn | Location | Event 4 | -11/Scrapyard | Discovered new exit (range 15) 12 | -11/Scrapyard | Entered Materials 86 | -10/Materials | Core integrity fell below 50% 86 | -10/Materials | Discovered new exit (range 13) 93 | -10/Materials | Entered another Materials area 93 | -9/Materials | Evolved 2 slots: Propulsion x1, Utility x1 261 | -9/Materials | Core integrity fell below 50% 291 | -9/Materials | Destroyed 7 combat bots 312 | -9/Materials | Core integrity fell below 20% 318 | -9/Materials | Build established: Mutant 409 | -9/Materials | Discovered new exit (range 11) 411 | -9/Materials | Destroyed by G-34 Mercenary with Small Laser Last Messages --------------- 00345_ U-05 Engineer lays Concrete. 00345_ Acquired 55 matter. 00346_ Acquired 32 matter. 00352_ Connecting with Repair Station... 00352_ ALERT: Suspicious activity at Repair Station M002. Dispatching Investigation squad. 00354_ Acquired Mace. 00365_ Acquired 35 matter. 00365_ U-05 Engineer builds a Wall. 00368_ U-05 Engineer lays Concrete. 00375_ W-16 Scout sends out distress signal. 00392_ Acquired Melee Analysis Suite. 00403_ O-16 Technician: "IFF HANDSHAKE FAILED. SECURING TERMINAL." 00409_ EXIT=FOUND 00411_ O-16 Technician uses terminal to summon reinforcements. 00411_ ALERT: Hostiles spotted, dispatching reinforcements to Terminal M004. 00411_ O-16 Technician locks terminal. Map ----- +----------------------------------------------------+ | ???????????????????????????????????? | | ???????????????????????????????????? | | ???????????????????????????????????? | | ???????????????????????????????????? | | ???????????????????????????????????? | | ???????????????????????????????????? | | ???????????????????????????????????? | | ???????????????????????????????????? | | ?????????? #?????????###/######### | | ?????????# ???????? ! | | ?????????# ??????? | | ?????????? ??????? | | ?????????? ??????? ![[ | | ??????????# #????????# ![ | | ??????????T #????????# ![ | | ??????????# #????????# | | ??????????# #????????# | | ??????????# #????????# | | ??????????# #????????# | | ???#####??# #????????# """ | | ???# ?# ###+###### """ | | ???# T?# """ | | ???# # """ | | ???# # | | ???# + ###+####### | | ???# #@ # # | | ???######## # """ + "T" | | ??????????# # "T" ##########+# | | ??????????# # #??????? | | ??????????# # #?????# " | | ??????????# # """ #?????# " | | ??????????+ # """ #?????# [ " | | ??????????# # """ #?????# | | ??????????# g ###########?????# " | | ??????????# #???????????????# " | | ??????????#####???????????????# " | | ??????????????????????????????# | | ??????????????????????????????###### | | ???????????????????????????????????? | | ???????????????????????????????????? | | ???????????????????????????????????? | | ???????????????????????????????????? | | ???????????????????????????????????? | | ???????????????????????????????????? | | ???????????????????????????????????? | | ???????????????????????????????????? | | ???????????????????????????????????? | | ???????????????????????????????????? | | ???????????????????????????????????? | | ???????????????????????????????????? | +----------------------------------------------------+ Best States ------------- Heat Dissipation 28 Energy Generation 5 Energy Capacity 100 Matter Stores 300 Matter Capacity 300 Sight Range 18 Terrain Scan Density 10 Evasion (%) 50 Targeting Accuracy 5 Melee Accuracy 10 Item Schematics ----------------- None Robot Schematics ------------------ None Fabricated ------------ Nothing Repaired ---------- Nothing Studied --------- None Alien Tech Used ----------------- None Achievements -------------- None Challenges ------------ None Game ------ Seed VoltaicConstructBasin Manual? 0 Play Time 00:07:20 Cumulative 442.5 hours Start 2025.10.26 @ 18:52:54 End 2025.10.26 @ 18:59:00 Sessions 1 Manual Loads 0 Difficulty Rogue Special Mode None Game No. 233 Rogue 233 Adventurer 0 Explorer 0 Win Type - Total 20 Types 12/1/5/1/0/0/0/1/0/0 Lore% 91 Gallery% 85 Achievement% 76 Wizard Run 0 Options --------- Layout 2 ASCII 0 Keyboard 1 Movement Vi Keybinds 0 Fullscreen 1 Font 28/Terminus Map View 50x52 Zoom Use 0% Tactical HUD 1 Map Filters NONE Filters NONE Steam 1 RUN: d0dec51b-e06a-4a91-903b-cec0806d6ee2